bitfinex/quotes_SOLUSD_20250416
["timestamp","ask_amount","ask_price","bid_price","bid_amount"]
[1744811001646,57.24740754,126.02,125.98,39.18488184]
[1744811001854,31.24740754,126.02,125.98,39.18488184]
[1744811002062,6.537,126.04,125.99,31.24740754]
[1744811002365,9.53923555,126.06,126.0,31.24740754]
[1744811002545,57.24740754,126.04,126.0,31.24740754]
[1744811002751,9.53923555,126.06,126.0,31.24740754]
[1744811002951,31.24740754,126.04,126.0,31.24740754]
[1744811003266,9.53923555,126.06,126.01,7.9358781]
[1744811003468,6.3446,126.08,126.02,31.24740754]
[1744811003773,1.5858,126.1,126.05,31.24740754]
[1744811003971,31.24740754,126.08,126.01,29.37397336]
[1744811004158,31.24740754,126.05,126.01,39.18328564]
[1744811004466,31.24740754,126.02,125.98,31.24740754]
[1744811004641,31.24740754,126.03,125.98,31.24740754]
[1744811004839,31.24740754,126.02,125.98,31.24740754]
[1744811005340,31.24740754,126.02,125.98,7.93776789]
[1744811005556,31.24740754,126.01,125.98,7.93776789]
[1744811005767,31.24740754,126.02,125.96,7.93902826]
[1744811005941,31.24740754,125.98,125.95,7.93944196]
[1744811006140,26.0,126.01,125.96,31.24740754]
[1744811006472,31.24740754,126.0,125.96,31.24740754]
[1744811006673,31.24740754,126.01,125.97,31.24740754]
[1744811006837,31.24740754,126.01,125.96,31.24740754]
[1744811007039,31.24740754,125.98,125.92,6.0523]
[1744811007246,31.24740754,125.97,125.93,39.18832709]
[1744811007847,31.24740754,125.95,125.92,7.94136741]
[1744811008063,26.0,125.99,125.93,18.64964886]
[1744811008257,57.24740754,125.99,125.94,31.24740754]
[1744811008770,31.24740754,125.98,125.94,31.24740754]
[1744811009068,57.24740754,125.99,125.95,7.93965859]
[1744811009267,26.0,126.01,125.97,31.24740754]
[1744811009449,31.24740754,126.0,125.96,31.24740754]
[1744811010058,57.24740754,126.01,125.96,31.24740754]
[1744811010253,31.24740754,126.0,125.96,31.24740754]
[1744811010562,26.0,126.01,125.97,31.24740754]
[1744811010864,57.24740754,126.01,125.97,31.24740754]
[1744811011069,31.24740754,126.0,125.94,7.94028902]
[1744811011246,26.0,126.01,125.95,31.24740754]
[1744811011583,31.24740754,126.0,125.96,31.24740754]
[1744811012072,31.24740754,125.97,125.92,7.94155019]
[1744811012274,31.24740754,125.95,125.92,7.94155019]
[1744811012449,31.24740754,125.96,125.92,7.94155019]
[1744811012652,90.83615196,126.01,125.95,31.24740754]
[1744811012905,26.0,126.0,125.96,31.24740754]
[1744811013246,31.24740754,126.02,125.98,31.24740754]
[1744811013442,1.6307,126.03,125.96,39.18614296]
[1744811013443,31.24740754,126.0,125.96,39.18614296]
[1744811013669,31.24740754,126.0,125.96,7.93873542]
[1744811013978,31.24740754,125.99,125.94,7.94028902]
[1744811014167,31.24740754,125.99,125.95,31.24740754]
[1744811014367,26.0,126.01,125.95,31.24740754]
[1744811014368,57.24740754,126.0,125.95,31.24740754]
[1744811014557,31.24740754,125.99,125.95,31.24740754]
[1744811014759,31.24740754,125.98,125.94,7.94028902]
[1744811014970,31.24740754,125.96,125.93,7.940623]
[1744811015273,31.24740754,125.95,125.91,39.18958846]
[1744811015460,31.24740754,125.95,125.91,7.94218092]
[1744811015849,31.24740754,125.93,125.91,7.94218092]
[1744811016049,31.24740754,125.93,125.89,57.70807137]
[1744811016050,31.24740754,125.93,125.89,39.19055961]
[1744811016369,26.0,125.96,125.91,31.24740754]
[1744811016567,57.24740754,125.96,125.91,31.24740754]
[1744811016771,31.24740754,125.95,125.9,31.24740754]
[1744811016985,31.24740754,125.92,125.89,7.94315207]
[1744811017171,31.24740754,125.92,125.88,31.24740754]
[1744811017684,31.24740754,125.91,125.87,39.19211239]
[1744811017893,31.24740754,125.92,125.88,31.24740754]
[1744811018258,31.24740754,125.9,125.87,7.94470485]
[1744811018461,31.24740754,125.89,125.86,7.94502318]
[1744811018695,31.24740754,125.9,125.86,59.05577093]
[1744811019153,31.24740754,125.9,125.86,39.19243072]
[1744811019987,31.24740754,125.89,125.86,7.94502318]
[1744811020193,31.24740754,125.9,125.86,7.94502318]
[1744811020367,31.24740754,125.9,125.86,39.19243072]
[1744811020777,31.24740754,125.91,125.86,39.19243072]
[1744811021284,31.24740754,125.9,125.86,27.80836339]
[1744811021665,31.24740754,125.89,125.86,7.94502318]
[1744811021866,31.24740754,125.88,125.85,7.94596742]
[1744811023501,26.0,125.88,125.85,39.19337496]
[1744811023794,31.24740754,125.91,125.87,31.24740754]
[1744811024289,82.9,125.94,125.88,31.24740754]
[1744811024475,31.24740754,125.94,125.89,31.24740754]
[1744811024667,31.24740754,125.92,125.85,67.54072307]
[1744811024869,31.24740754,125.91,125.87,31.24740754]
[1744811025064,31.24740754,125.91,125.86,31.24740754]
[1744811025374,31.24740754,125.88,125.84,39.19400639]
[1744811025676,31.24740754,125.89,125.84,39.19400639]
[1744811025876,57.24740754,125.91,125.86,31.24740754]
[1744811026076,26.0,125.9,125.87,31.24740754]
[1744811026286,83.04216157,125.94,125.87,31.24740754]
[1744811026287,57.24740754,125.92,125.87,31.24740754]
[1744811026593,57.24740754,125.93,125.88,31.24740754]
[1744811026767,31.24740754,125.92,125.87,31.24740754]
[1744811027092,31.24740754,125.91,125.87,31.24740754]
[1744811027300,31.24740754,125.92,125.87,31.24740754]
[1744811027488,31.24740754,125.92,125.88,7.94407372]
[1744811028091,31.24740754,125.92,125.88,39.19148126]
[1744811028792,31.24740754,125.92,125.88,59.05166556]
[1744811028970,57.24740754,125.93,125.88,59.05166556]
[1744811029171,31.24740754,125.93,125.88,59.05166556]
[1744811029379,31.24740754,125.92,125.88,59.05166556]
[1744811029578,31.24740754,125.92,125.83,6.37606157]
[1744811029579,31.24740754,125.89,125.85,7.94596742]
[1744811029893,31.24740754,125.87,125.85,7.94596742]
[1744811030774,26.0,125.9,125.85,7.94596742]
[1744811031085,141.94090495,125.93,125.86,31.24740754]
[1744811031086,31.24740754,125.91,125.86,31.24740754]
[1744811031289,31.24740754,125.89,125.85,59.05829351]
[1744811031601,39.18860606,125.93,125.84,39.19400639]
[1744811031602,31.24740754,125.88,125.84,39.19400639]
[1744811031801,31.24740754,125.87,125.84,7.94659885]
[1744811032483,26.0,125.9,125.84,27.81309598]
[1744811032671,57.24740754,125.9,125.86,31.24740754]
[1744811032865,31.24740754,125.89,125.85,31.24740754]
[1744811033179,31.24740754,125.88,125.84,27.81309598]
[1744811033595,31.24740754,125.88,125.84,27.61462598]
[1744811034294,31.24740754,125.89,125.84,58.86203352]
[1744811034596,31.24740754,125.88,125.84,58.86203352]
[1744811034789,33.94285946,125.9,125.85,31.24740754]
[1744811034790,31.24740754,125.89,125.85,31.24740754]
[1744811034998,57.24740754,125.9,125.86,31.24740754]
[1744811035295,57.24740754,125.9,125.84,27.61462598]
[1744811035296,31.24740754,125.89,125.85,31.24740754]
[1744811035496,57.24740754,125.9,125.85,31.24740754]
[1744811035699,57.24740754,125.9,125.86,31.24740754]
[1744811036499,57.24740754,125.9,125.87,7.94470485]
[1744811037172,31.24740754,125.88,125.84,51.11390467]
[1744811037500,31.24740754,125.87,125.85,7.94596742]
[1744811037704,31.24740754,125.86,125.78,83.0]
[1744811037998,31.24740754,125.84,125.8,31.24740754]
[1744811038300,31.24740754,125.84,125.79,6.5734]
[1744811038502,31.24740754,125.84,125.8,19.87225422]
[1744811038680,26.0,125.86,125.8,31.24740754]
[1744811038885,31.24740754,125.85,125.8,31.24740754]
[1744811039503,31.24740754,125.84,125.79,65.6449589]
[1744811039686,31.24740754,125.83,125.79,14.52315753]
[1744811039875,31.24740754,125.84,125.79,45.77056507]
[1744811040075,31.24740754,125.85,125.8,31.24740754]
[1744811040413,31.24740754,125.85,125.81,39.1959013]
[1744811040575,26.0,125.86,125.8,7.94912559]
[1744811040894,31.24740754,125.84,125.8,7.94912559]
[1744811041193,57.24740754,125.86,125.81,31.24740754]
[1744811041400,26.0,125.86,125.82,31.24740754]
[1744811041694,57.24740754,125.86,125.82,31.24740754]
[1744811041888,31.24740754,125.84,125.8,27.82193958]
[1744811042287,57.24740754,125.86,125.81,31.24740754]
[1744811042586,57.24740754,125.86,125.82,7.94786202]
[1744811043295,6.5455,125.89,125.83,31.24740754]
[1744811043500,1.6191,125.9,125.85,31.24740754]
[1744811043795,31.24740754,125.91,125.87,31.24740754]
[1744811044102,31.24740754,125.92,125.87,31.24740754]
[1744811044600,31.24740754,125.88,125.83,31.24740754]
[1744811044801,31.24740754,125.86,125.83,7.94723039]
[1744811045101,26.0,125.88,125.84,31.24740754]
[1744811045285,31.24740754,125.87,125.83,7.94723039]
[1744811045597,31.24740754,125.86,125.82,14.52002617]
[1744811045800,31.24740754,125.84,125.8,31.24740754]
[1744811046003,31.24740754,125.84,125.8,7.94912559]
[1744811046192,31.24740754,125.85,125.81,31.24740754]
[1744811046495,31.24740754,125.84,125.8,39.19653313]
[1744811046701,31.24740754,125.85,125.8,39.19653313]
[1744811046907,35.58771961,125.87,125.8,7.94912559]
[1744811047104,31.24740754,125.83,125.8,7.94912559]
[1744811047605,31.24740754,125.84,125.8,7.94912559]
[1744811047807,31.24740754,125.84,125.8,39.19653313]
[1744811048110,31.24740754,125.84,125.8,7.94912559]
[1744811048307,31.24740754,125.82,125.79,7.94951171]
[1744811049212,31.24740754,125.84,125.8,31.24740754]
[1744811049399,31.24740754,125.83,125.79,7.94951171]
[1744811049601,31.24740754,125.82,125.79,7.94951171]
[1744811049803,31.24740754,125.84,125.79,39.19691925]
[1744811050010,90.84581564,125.86,125.79,39.19691925]
[1744811050011,31.24740754,125.85,125.8,31.24740754]
[1744811050318,31.24740754,125.84,125.79,7.94951171]
[1744811050511,31.24740754,125.84,125.8,31.24740754]
[1744811050692,31.24740754,125.84,125.81,7.94849376]
[1744811050893,57.24740754,125.86,125.82,31.24740754]
[1744811051113,31.24740754,125.85,125.81,7.94849376]
[1744811051294,31.24740754,125.84,125.8,39.19624663]
[1744811051494,31.24740754,125.86,125.81,31.24740754]
[1744811052603,31.24740754,125.84,125.79,31.24740754]
[1744811052802,31.24740754,125.83,125.79,31.24740754]
[1744811053004,26.0,125.87,125.79,31.24740754]
[1744811053005,31.24740754,125.82,125.79,7.94975753]
[1744811053417,31.24740754,125.8,125.77,7.9510217]
[1744811053716,31.24740754,125.81,125.77,7.9510217]
[1744811053922,31.24740754,125.8,125.77,7.9510217]
[1744811054416,26.0,125.82,125.77,7.9510217]
[1744811054622,57.24740754,125.82,125.77,39.19842924]
[1744811054925,57.24740754,125.82,125.78,31.24740754]
[1744811055225,26.0,125.82,125.78,31.24740754]
[1744811055395,26.0,125.86,125.81,31.24740754]
[1744811055596,31.24740754,125.85,125.79,1.588]
[1744811055797,31.24740754,125.85,125.81,31.24740754]
[1744811056610,33.94513101,125.87,125.82,7.94786202]
[1744811056798,31.24740754,125.85,125.82,7.94786202]
[1744811057212,57.24740754,125.86,125.82,7.94786202]
[1744811057501,31.24740754,125.85,125.82,7.94786202]
[1744811058121,31.24740754,125.84,125.81,7.94823014]
[1744811058418,31.24740754,125.85,125.81,7.94823014]
[1744811058722,31.24740754,125.82,125.75,47.30002204]
[1744811058925,31.24740754,125.8,125.76,59.07810001]
[1744811059105,31.24740754,125.81,125.77,31.24740754]
[1744811059304,57.24740754,125.82,125.77,31.24740754]
[1744811059505,26.0,125.82,125.78,31.24740754]
[1744811059716,26.0,125.82,125.76,27.83069247]
[1744811060015,26.0,125.82,125.78,31.24740754]
[1744811060329,57.24740754,125.82,125.78,31.24740754]
[1744811060623,57.24740754,125.82,125.79,7.94975753]
[1744811061912,1.6094,125.86,125.79,39.19716507]
[1744811062119,31.24740754,125.83,125.79,39.19716507]
[1744811063728,31.24740754,125.85,125.8,31.24740754]
[1744811064026,31.24740754,125.84,125.8,31.24740754]
[1744811064921,90.6259,125.89,125.82,31.24740754]
[1744811065124,264.10518123,125.92,125.86,31.24740754]
[1744811065439,31.24740754,125.9,125.85,31.24740754]
[1744811065726,256.1633,125.92,125.86,31.24740754]
[1744811065926,31.24740754,125.91,125.86,31.24740754]
[1744811066112,31.24740754,125.88,125.82,73.5750272]
[1744811066313,31.24740754,125.91,125.86,31.24740754]
[1744811066510,31.24740754,125.91,125.87,31.24740754]
[1744811066821,31.24740754,125.9,125.85,31.24740754]
[1744811067214,31.24740754,125.9,125.86,31.24740754]
[1744811067809,31.24740754,125.9,125.85,31.24740754]
[1744811068005,31.24740754,125.88,125.83,39.19463793]
[1744811068225,31.24740754,125.87,125.83,39.19463793]
[1744811068402,31.24740754,125.87,125.83,7.94723039]
[1744811069208,31.24740754,125.87,125.83,31.24740754]
[1744811069620,31.24740754,125.88,125.84,31.24740754]
[1744811069831,57.24740754,125.89,125.85,31.24740754]
[1744811070333,57.24740754,125.89,125.84,31.24740754]
[1744811070531,57.24740754,125.89,125.85,31.24740754]
[1744811070740,26.0,125.9,125.86,31.24740754]
[1744811070923,26.0,125.9,125.82,27.81701271]
[1744811070924,31.24740754,125.88,125.82,27.81701271]
[1744811071233,31.24740754,125.88,125.84,39.19400639]
[1744811071433,57.24740754,125.89,125.84,39.19400639]
[1744811072334,31.24740754,125.88,125.84,39.19400639]
[1744811072533,31.24740754,125.86,125.83,7.94717753]
[1744811072839,31.24740754,125.88,125.84,31.24740754]
[1744811073413,31.24740754,125.88,125.83,27.8152535]
[1744811073617,31.24740754,125.88,125.83,59.06266104]
[1744811074229,31.24740754,125.88,125.84,31.24740754]
[1744811074454,31.24740754,125.86,125.84,7.9463062]
[1744811074632,31.24740754,125.85,125.82,7.94786202]
[1744811075942,31.24740754,125.83,125.79,31.24740754]
[1744811076257,31.24740754,125.83,125.8,7.94912559]
[1744811076417,57.24740754,125.84,125.79,39.19716507]
[1744811076619,26.0,125.84,125.8,31.24740754]
[1744811077123,57.24740754,125.84,125.79,27.82415136]
[1744811077450,57.24740754,125.84,125.79,39.19716507]
[1744811077623,31.24740754,125.81,125.79,7.94975753]
[1744811078321,9.57075199,125.85,125.79,7.94975753]
[1744811078322,57.24740754,125.83,125.79,39.19716507]
[1744811078530,57.24740754,125.83,125.79,59.0715589]
[1744811078756,31.24740754,125.82,125.79,7.94975753]
[1744811079042,57.24740754,125.83,125.79,7.94975753]
[1744811079247,31.24740754,125.83,125.79,7.94975753]
[1744811079549,31.24740754,125.83,125.79,39.19716507]
[1744811079754,82.9,125.87,125.82,31.24740754]
[1744811080046,31.24740754,125.87,125.83,31.24740754]
[1744811080543,31.24740754,125.88,125.85,7.94596742]
[1744811080948,31.24740754,125.86,125.83,7.94723039]
[1744811081449,26.0,125.87,125.84,31.24740754]
[1744811081633,31.24740754,125.9,125.86,31.24740754]
[1744811082038,31.24740754,125.9,125.85,31.24740754]
[1744811082341,31.24740754,125.91,125.86,31.24740754]
[1744811082527,31.24740754,125.91,125.87,7.94470485]
[1744811082922,57.24740754,125.91,125.87,7.94470485]
[1744811083149,57.24740754,125.91,125.87,39.19211239]
[1744811083755,31.24740754,125.9,125.87,7.94470485]
[1744811084254,65.18964384,125.91,125.87,7.94470485]
[1744811084561,31.24740754,125.9,125.87,7.94470485]
[1744811085351,31.24740754,125.9,125.85,31.24740754]
[1744811085559,31.24740754,125.89,125.85,31.24740754]
[1744811085866,31.24740754,125.9,125.85,31.24740754]
[1744811086453,26.0,125.91,125.86,31.24740754]
[1744811086768,57.24740754,125.91,125.86,31.24740754]
[1744811087368,57.24740754,125.91,125.87,7.94470485]
[1744811087553,31.24740754,125.9,125.87,7.94470485]
[1744811088764,31.24740754,125.88,125.86,7.94501123]
[1744811089662,31.24740754,125.89,125.85,39.19337496]
[1744811090469,31.24740754,125.9,125.85,39.19337496]
[1744811090869,31.24740754,125.89,125.85,39.19337496]
[1744811091062,31.24740754,125.88,125.85,7.94596742]
[1744811091264,31.24740754,125.86,125.83,7.94723039]
[1744811091567,31.24740754,125.85,125.83,7.94723039]
[1744811091758,31.24740754,125.85,125.81,7.94849376]
[1744811091959,31.24740754,125.86,125.81,39.1959013]
[1744811092474,31.24740754,125.86,125.82,31.24740754]
[1744811092851,31.24740754,125.86,125.81,39.1959013]
[1744811093067,31.24740754,125.86,125.81,59.0671357]
[1744811093264,31.24740754,125.84,125.81,7.94849376]
[1744811093847,31.24740754,125.85,125.81,7.94849376]
[1744811094159,31.24740754,125.86,125.82,31.24740754]
[1744811094362,26.0,125.88,125.85,31.24740754]
[1744811095165,26.0,125.88,125.86,7.94533608]
[1744811095362,57.24740754,125.88,125.86,7.94533608]
[1744811095974,31.24740754,125.87,125.83,51.11523997]
[1744811096267,31.24740754,125.87,125.84,7.94630253]
[1744811096456,57.24740754,125.88,125.84,7.94630253]
[1744811096658,57.24740754,125.88,125.84,39.19371007]
[1744811096860,31.24740754,125.87,125.84,7.94630253]
[1744811097058,26.0,125.88,125.83,39.19463793]
[1744811097249,26.0,125.88,125.85,31.24740754]
[1744811097450,26.0,125.88,125.84,31.24740754]
[1744811098068,31.24740754,125.87,125.83,7.94723039]
[1744811098365,31.24740754,125.86,125.83,7.94723039]
[1744811099072,31.24740754,125.85,125.81,7.94849376]
[1744811099369,26.0,125.88,125.82,31.24740754]
[1744811099670,31.24740754,125.86,125.81,59.0671357]
[1744811099864,31.24740754,125.87,125.82,31.24740754]
[1744811100170,31.24740754,125.86,125.81,59.0671357]
[1744811100376,31.24740754,125.86,125.82,31.24740754]
[1744811100567,33.94418083,125.88,125.82,31.24740754]
[1744811100568,6.1079,125.92,125.85,31.24740754]
[1744811100759,6.1079,125.92,125.82,18.64964886]
[1744811100760,31.24740754,125.89,125.84,31.24740754]
[1744811100968,0.14216157,125.91,125.81,27.81972816]
[1744811101168,82.9,125.9,125.82,18.64964886]
[1744811101358,6.1079,125.92,125.85,31.24740754]
[1744811101762,57.24740754,125.89,125.85,31.24740754]
[1744811101967,57.24740754,125.89,125.84,31.24740754]
[1744811102284,31.24740754,125.85,125.81,7.94849376]
[1744811102486,31.24740754,125.86,125.82,31.24740754]
[1744811102685,31.24740754,125.85,125.81,39.1959013]
[1744811103184,31.24740754,125.86,125.81,59.0671357]
[1744811103681,108.9,125.89,125.83,31.24740754]
[1744811103864,31.24740754,125.9,125.85,31.24740754]
[1744811104061,57.24740754,125.9,125.85,31.24740754]
[1744811104261,1.6651,125.93,125.87,31.24740754]
[1744811104461,31.24740754,125.91,125.87,31.24740754]
[1744811104784,31.24740754,125.91,125.86,31.24740754]
[1744811105180,19.51833824,125.92,125.87,27.46304309]
[1744811105388,255.6263,125.96,125.91,19.51833824]
[1744811105583,19.51833824,125.92,125.87,27.80646698]
[1744811105783,19.51833824,125.89,125.86,7.9450059]
[1744811106079,19.51833824,125.88,125.84,7.94659885]
[1744811106275,19.51833824,125.88,125.84,27.46493709]
[1744811106661,26.0,125.9,125.82,7.94786202]
[1744811106662,19.51833824,125.85,125.82,7.94786202]
[1744811106862,19.51833824,125.83,125.78,7.95038956]
[1744811107061,19.51833824,125.81,125.78,7.95038956]
[1744811107260,27.535,125.84,125.77,27.82814732]
[1744811107261,35.48168002,125.84,125.77,27.82814732]
[1744811107574,31.28420238,125.83,125.78,31.28420238]
[1744811107773,31.28420238,125.82,125.77,59.1123497]
[1744811107974,31.28420238,125.81,125.77,59.1123497]
[1744811108177,31.28420238,125.79,125.77,7.9510217]
[1744811108368,31.28420238,125.78,125.77,7.9510217]
[1744811109064,31.28420238,125.79,125.77,7.9510217]
[1744811109269,31.28420238,125.79,125.75,59.11712945]
[1744811109683,31.28420238,125.78,125.75,27.83292707]
[1744811109982,31.28420238,125.8,125.75,59.11712945]
[1744811110575,31.28420238,125.82,125.78,31.28420238]
[1744811110780,31.28420238,125.82,125.77,31.28420238]
[1744811110975,31.28420238,125.79,125.75,27.83292707]
[1744811111172,31.28420238,125.78,125.74,7.95291872]
[1744811111473,31.28420238,125.77,125.74,7.95291872]
[1744811111684,31.28420238,125.78,125.74,7.95291872]
[1744811111881,33.94786202,125.82,125.75,31.28420238]
[1744811112075,31.28420238,125.78,125.74,59.1194179]
[1744811112277,31.28420238,125.77,125.74,27.83521552]
[1744811112480,31.28420238,125.78,125.74,59.1194179]
[1744811113588,31.28420238,125.79,125.74,59.1194179]
[1744811114181,31.28420238,125.78,125.74,27.83521552]
[1744811114385,31.28420238,125.77,125.74,7.95291872]
[1744811115089,31.28420238,125.78,125.74,7.95291872]
[1744811115291,31.28420238,125.77,125.74,7.95291872]
[1744811116068,26.0,125.8,125.75,31.28420238]
[1744811116288,57.28420238,125.8,125.75,31.28420238]
[1744811116589,31.28420238,125.82,125.78,31.28420238]
[1744811116785,9.48172838,125.84,125.78,31.28420238]
[1744811116992,31.28420238,125.82,125.78,31.28420238]
[1744811117180,31.28420238,125.82,125.77,31.28420238]
[1744811117382,31.28420238,125.8,125.76,31.28420238]
[1744811117580,31.28420238,125.79,125.74,27.83521552]
[1744811117780,31.28420238,125.8,125.75,31.28420238]
[1744811118281,31.28420238,125.8,125.76,31.28420238]
[1744811118487,57.28420238,125.82,125.77,39.23522408]
[1744811118675,31.28420238,125.82,125.78,31.28420238]
[1744811118875,31.28420238,125.81,125.77,27.82857596]
[1744811119088,31.28420238,125.81,125.77,59.11277834]
[1744811119387,31.28420238,125.82,125.77,59.11277834]
[1744811119593,31.28420238,125.82,125.78,31.28420238]
[1744811119781,27.535,125.84,125.77,27.82857596]
[1744811119782,57.28420238,125.83,125.79,31.28420238]
[1744811120170,31.28420238,125.81,125.77,27.82857596]
[1744811120376,31.28420238,125.81,125.77,7.9510217]
[1744811120781,31.28420238,125.81,125.77,59.11277834]
[1744811121386,31.28420238,125.82,125.77,59.11277834]
[1744811121773,31.28420238,125.81,125.77,59.11277834]
[1744811121977,31.28420238,125.81,125.77,27.82857596]
[1744811122300,31.28420238,125.8,125.77,7.9510217]
[1744811122486,31.28420238,125.78,125.73,31.28420238]
[1744811122684,31.28420238,125.78,125.74,31.28420238]
[1744811122885,31.28420238,125.77,125.73,31.28420238]
[1744811123186,31.28420238,125.77,125.72,59.12384603]
[1744811123499,31.28420238,125.74,125.72,7.9541839]
[1744811123692,31.28420238,125.73,125.7,7.95544948]
[1744811123875,31.28420238,125.74,125.7,7.95544948]
[1744811124077,31.28420238,125.73,125.7,7.95544948]
[1744811124287,31.28420238,125.72,125.69,7.95608242]
[1744811124484,31.28420238,125.7,125.65,7.9586152]
[1744811124683,31.28420238,125.68,125.65,7.9586152]
[1744811125380,31.28420238,125.69,125.65,39.24281758]
[1744811125694,57.28420238,125.7,125.65,59.13935558]
[1744811125898,57.28420238,125.7,125.66,31.28420238]
[1744811126278,57.28420238,125.7,125.65,59.13935558]
[1744811126474,31.28420238,125.69,125.65,27.8551532]
[1744811126901,31.28420238,125.69,125.65,59.13935558]
[1744811127205,31.28420238,125.67,125.65,7.9586152]
[1744811127389,26.0,125.7,125.65,7.9586152]
[1744811127696,31.28420238,125.69,125.65,39.24281758]
[1744811128016,31.28420238,125.69,125.65,7.9586152]
[1744811128197,57.28420238,125.67,125.62,7.96051584]
[1744811128500,31.28420238,125.67,125.65,7.9586152]
[1744811128691,31.28420238,125.66,125.62,51.18549198]
[1744811128892,31.28420238,125.66,125.63,7.95988219]
[1744811129485,31.28420238,125.65,125.63,7.95988219]
[1744811129712,31.28420238,125.65,125.62,7.96022112]
[1744811129913,31.28420238,125.63,125.58,6.0811]
[1744811130084,31.28420238,125.62,125.59,7.96220661]
[1744811130405,31.28420238,125.63,125.59,39.24640899]
[1744811130589,31.28420238,125.63,125.59,7.96220661]
[1744811130788,31.28420238,125.62,125.59,7.96220661]
[1744811131089,31.28420238,125.61,125.54,26.15297433]
[1744811131295,31.28420238,125.62,125.57,31.28420238]
[1744811131496,32.84210238,125.65,125.61,31.28420238]
[1744811131497,57.28420238,125.65,125.61,31.28420238]
[1744811131799,57.28420238,125.65,125.6,31.28420238]
[1744811132000,31.28420238,125.64,125.58,18.64964886]
[1744811132183,31.28420238,125.63,125.58,18.64964886]
[1744811132512,31.28420238,125.63,125.59,31.28420238]
[1744811132685,31.28420238,125.63,125.6,7.96178343]
[1744811133304,57.28420238,125.65,125.6,27.86624202]
[1744811133493,57.28420238,125.65,125.6,59.1504444]
[1744811133693,31.28420238,125.63,125.6,7.96178343]
[1744811133889,26.0,125.65,125.53,1.5128]
[1744811133890,31.28420238,125.61,125.57,7.96368559]
[1744811134095,26.0,125.62,125.57,7.96368559]
[1744811134096,31.28420238,125.58,125.57,7.96368559]
[1744811134298,31.28420238,125.61,125.57,7.96368559]
[1744811134492,31.28420238,125.6,125.57,7.96368559]
[1744811134691,26.0,125.62,125.57,7.96368559]
[1744811134692,31.28420238,125.59,125.57,7.96368559]
[1744811135000,31.28420238,125.59,125.55,27.8773397]
[1744811135202,31.28420238,125.59,125.55,59.16154208]
[1744811135388,57.28420238,125.6,125.56,31.28420238]
[1744811135591,26.0,125.6,125.56,31.28420238]
[1744811136286,31.28420238,125.58,125.55,7.9649542]
[1744811136997,31.28420238,125.58,125.54,7.96558865]
[1744811137198,57.28420238,125.6,125.55,31.28420238]
[1744811137403,26.0,125.6,125.54,27.87956029]
[1744811137710,31.28420238,125.59,125.55,31.28420238]
[1744811138411,57.28420238,125.6,125.54,27.87956029]
[1744811138613,31.28420238,125.59,125.54,27.87956029]
[1744811138821,26.0,125.59,125.55,31.28420238]
[1744811139117,57.28420238,125.63,125.59,7.96241738]
[1744811139718,31.28420238,125.61,125.55,27.8773397]
[1744811139893,31.28420238,125.61,125.56,31.28420238]
[1744811140092,31.28420238,125.61,125.57,31.28420238]
[1744811140616,31.28420238,125.61,125.55,27.8773397]
[1744811140918,31.28420238,125.59,125.55,7.9649542]
[1744811141129,31.28420238,125.57,125.52,7.96685787]
[1744811141605,31.28420238,125.56,125.52,39.25106025]
[1744811141784,57.28420238,125.57,125.52,39.25106025]
[1744811142225,31.28420238,125.56,125.52,39.25106025]
[1744811142511,57.28420238,125.56,125.52,39.25106025]
[1744811142814,57.28420238,125.56,125.52,7.96685787]
[1744811142995,31.28420238,125.55,125.5,27.88817903]
[1744811143202,31.28420238,125.54,125.5,7.96812749]
[1744811143401,33.96434317,125.56,125.45,7.9713033]
[1744811143402,62.56840476,125.51,125.45,7.9713033]
[1744811143713,31.28420238,125.47,125.45,7.9713033]
[1744811144290,26.0,125.48,125.43,7.97257434]
[1744811144515,31.28420238,125.47,125.43,39.25677672]
[1744811144892,31.28420238,125.46,125.43,7.97257434]
[1744811145195,57.28420238,125.48,125.43,59.18821258]
[1744811145390,31.28420238,125.47,125.43,7.97257434]
[1744811145705,31.28420238,125.45,125.43,7.97257434]
[1744811146094,31.28420238,125.44,125.4,7.97448165]
[1744811146290,31.28420238,125.43,125.4,7.97448165]
[1744811146705,31.28420238,125.44,125.4,7.97448165]
[1744811147222,31.28420238,125.42,125.4,7.97448165]
[1744811147418,0.14216157,125.44,125.4,7.97448165]
[1744811147419,31.28420238,125.41,125.4,7.97448165]
[1744811147725,31.28420238,125.42,125.4,7.97448165]
[1744811148220,0.14216157,125.46,125.4,39.25868403]
[1744811148390,31.28420238,125.43,125.4,7.97448165]
[1744811148591,26.0,125.44,125.4,7.97448165]
[1744811148786,57.28420238,125.44,125.4,7.97448165]
[1744811149213,31.28420238,125.42,125.37,39.26059226]
[1744811149415,31.28420238,125.41,125.37,39.26059226]
[1744811149729,31.28420238,125.42,125.38,31.28420238]
[1744811150019,31.28420238,125.4,125.37,27.91736459]
[1744811150189,26.0,125.44,125.38,31.28420238]
[1744811150396,26.0,125.44,125.37,27.91736459]
[1744811150613,57.28420238,125.44,125.4,31.28420238]
[1744811150801,31.28420238,125.45,125.41,31.28420238]